[Event "Czech Open-Rapid 2022"]
[Site "Pardubice"]
[Date "2022.07.21"]
[Round "5.2"]
[White "Donchenko, Alexander"]
[Black "Vykouk, Jan"]
[Result "1-0"]
[ECO "E91"]
[WhiteElo "2640"]
[BlackElo "2476"]
[Annotator "TA"]
[PlyCount "129"]
[EventDate "2022.07.20"]
[EventType "swiss"]
[EventCountry "CZE"]
[SourceTitle "playchess.com"]
[Source "ChessBase"]
[SourceQuality "1"]
[TimeControl "1200+10"]

{[%evp 15,129,43,61,42,50,41,50,17,24,16,72,77,79,79,66,58,74,77,126,127,132,106,145,116,124,72,77,84,87,93,148,0,6,0,3,0,0,0,50,41,46,56,66,55,70,79,79,75,75,81,80,75,75,75,80,81,81,81,81,20,20,20,77,69,69,8,20,0,8,8,8,8,274,200,752,736,711,706,610,663,984,930,1398,670,709,564,1056,622,29951,29951,5385,8,8,8,29953,29958,29955,12601,29973,29974,29976,29977,29977,29978,29979,29980,29985,29981,29980,29982,29982,29983,29983,29984,29983,29982]} 1. d4 {[%emt 0:00:01]} Nf6 {[%emt 0:00:01]} 2. c4 {[%emt 0:00:02]} g6 {[%emt 0:00:01]} 3. Nc3 {[%emt 0:00:02]} Bg7 {[%emt 0:00:02]} 4. e4 {[%emt 0:00:02]} d6 {[%emt 0:00:01]} 5. Nf3 {[%emt 0:00:02]} O-O {[%emt 0:00:02]} 6. Be2 {[%emt 0:00:02]} Nbd7 {[%emt 0:00:01]} 7. O-O {[%emt 0:00:04]} e5 {[%emt 0:00:02]} 8. Be3 {[%emt 0:00:08]} Re8 {[%emt 0:00:01]} 9. Qc2 {[%emt 0:00:15] E94: King's Indian: Classical: 6 Be2 e5 7 0-0: Various Black 7th moves.} b6 {[%emt 0:00:01]} 10. d5 {[%emt 0:00:48]} a5 {[%emt 0:00:01]} 11. a3 {[%emt 0:00:03] White is slightly better.} Nc5 {[%emt 0:00:09]} 12. b4 {[%emt 0:00:56] [#]} Nb7 $146 {[%emt 0:00:01]} (12... Ncxe4 $11 13. Nxe4 Nxe4) ({Predecessor:} 12... axb4 13. axb4 Rxa1 14. Rxa1 Na6 15. c5 Nxb4 16. Qa4 bxc5 17. Nd2 Bd7 18. Qa7 Nc2 {0-1 (65) Dutt,L (1715)-Eman,S Chess.com INT 2021}) 13. Rfe1 {[%emt 0:01:02]} Nh5 {[%emt 0:00:19]} 14. Nd2 {[%emt 0:00:36]} Nf4 {[%emt 0:01:36]} 15. Bf3 {[%emt 0:00:55]} f5 {[%emt 0:01:36]} 16. exf5 {[%emt 0:00:55]} gxf5 {[%emt 0:00:02]} (16... Bxf5 $142 17. Nde4 g5) 17. Bxf4 $16 {[%emt 0:00:38]} exf4 {[%emt 0:00:01]} 18. Bh5 {[%emt 0:00:03]} Rxe1+ {[%emt 0:00:37]} 19. Rxe1 {[%emt 0:00:02] Strongly threatening Re8+.} Bd7 {[%emt 0:00:01] Against Re8+} 20. Nf3 {[%emt 0:01:32]} (20. Nb5 $142) 20... axb4 {[%emt 0:00:29]} 21. axb4 {[%emt 0:00:04]} Qf6 {[%emt 0:01:42]} 22. Nb5 {[%emt 0:01:16]} c5 {[%emt 0:00:36]} (22... Qb2 $142 23. Qxb2 Bxb2) 23. Nc7 {[%emt 0:02:30] 0x0.001f23c92692dp-1022s more active pieces. Pair of Knights!} ({White has to play} 23. dxc6 $1 $16 Bxc6 24. Nfd4 Bxb5 25. Nxb5) 23... Ra1 $132 {[%emt 0:00:03][%mdl 2048] Black is not holding back} 24. b5 {[%emt 0:01:57]} Na5 {[%emt 0:01:30]} 25. Qe2 {[%emt 0:01:15]} Rxe1+ {[%emt 0:02:52]} 26. Nxe1 {[%emt 0:00:02]} Qe5 {[%emt 0:00:00]} ({Better is} 26... f3 $11 27. Bxf3 Qc3) 27. Qxe5 $1 $14 {[%emt 0:01:11]} dxe5 {[%emt 0:00:03]} 28. Be2 {[%emt 0:00:00]} Bf6 {[%emt 0:00:09]} 29. Na8 $1 Bd8 30. Nf3 $1 {[%emt 0:00:17]} Bc8 {[%emt 0:02:09]} 31. Nxe5 {[%emt 0:01:06] And now d6 would win.} Bb7 {[%emt 0:00:01]} 32. Nc6 $1 {[%emt 0:02:39]} Nxc6 {[%emt 0:00:02]} 33. dxc6 {[%emt 0:00:06]} Bxa8 {[%emt 0:00:01]} 34. Bd3 {[%emt 0:00:02]} Kf7 {[%emt 0:00:35]} 35. Bxf5 {[%emt 0:00:02]} h6 {[%emt 0:00:01]} 36. g3 $1 {[%emt 0:01:03][%mdl 1024] White has strong compensation.} Kf6 {[%emt 0:00:11]} 37. Bd3 {[%emt 0:00:44]} (37. Bh7 $1 $16) 37... Ke5 $11 {[%emt 0:00:11]} 38. Kg2 {[%emt 0:00:03]} Kd6 {[%emt 0:00:50]} (38... Kd4 $11 39. Be2 Bc7) 39. Be4 {[%emt 0:00:27]} Ke5 {[%emt 0:00:02]} 40. Bf3 {[%emt 0:00:06]} (40. Bg6 $14) 40... Bc7 {[%emt 0:00:15]} 41. Kh3 {[%emt 0:00:10]} Kd4 $1 {[%emt 0:00:26]} 42. Be2 {[%emt 0:00:05]} f3 {[%emt 0:00:19]} 43. Bf1 {[%emt 0:00:03] Black must now prevent Kg4.} Ke4 $2 {[%emt 0:04:49][%mdl 8192]} (43... Bxc6 $11 44. bxc6 b5 45. cxb5 c4 46. Bxc4 Kxc4) 44. Kg4 {[%emt 0:01:08]} Be5 $2 {[%emt 0:00:02]} (44... Bd8) 45. Kh5 $18 {[%emt 0:00:07]} Bd4 {[%emt 0:00:14]} 46. Kxh6 {[%emt 0:01:45]} Bxf2 {[%emt 0:00:04]} 47. g4 $1 {[%emt 0:00:01][%cal Bg3g4,Bg4g5,Bg5g6][%mdl 32] aiming for g5.} Be3+ {[%emt 0:00:59]} 48. g5 {[%emt 0:00:09]} Kf5 {[%emt 0:02:44]} 49. Bh3+ {[%emt 0:00:03]} (49. h4 $142 Kg4 50. Kh7) 49... Ke5 {[%emt 0:00:07]} 50. Kh5 {[%emt 0:00:07] Bf1 is the strong threat.} Bf4 {[%emt 0:01:07]} 51. Bf1 {[%emt 0:01:37] Threatens to win with h3.} Bxh2 {[%emt 0:00:51] [#]} 52. g6 $1 {[%emt 0:00:01]} Ke6 {[%emt 0:00:05] [#]} 53. Kh6 $2 {[%emt 0:00:03]} ({Only move:} 53. Bh3+ $1 $18 Kf6 54. Kh6) 53... Be5 $1 $11 {[%emt 0:00:09]} 54. Kh7 {[%emt 0:00:39] White wants to mate with g7.} (54. Bd3 {is more complex.} f2 55. g7 f1=Q 56. Bxf1 Kf7 57. Kg5) 54... Kf5 $2 {[%emt 0:00:16][%mdl 8192]} (54... Kd6 $11) 55. g7 {[%emt 0:00:03]} Bxg7 {[%emt 0:00:01]} 56. Kxg7 {[%emt 0:00:02] White threatens Kf7 and mate. KB-KB} Kf4 {[%emt 0:00:01]} 57. Kf6 {[%emt 0:00:02] White mates.} Ke3 {[%emt 0:00:15]} 58. Ke5 {[%emt 0:00:12]} Kf2 {[%emt 0:00:13]} 59. Bh3 {[%emt 0:00:14]} Kg3 {[%emt 0:00:48]} 60. Bf5 {[%emt 0:00:03]} ({Stronger than} 60. c7 Bb7 61. Bf5 f2 $11) 60... Kf2 {[%emt 0:00:09]} 61. Be4 {[%emt 0:00:24]} Ke3 {[%emt 0:00:03] [#]} 62. Bxf3 $1 {[%emt 0:00:10][%mdl 512]} Kxf3 {[%emt 0:00:01]} 63. Kd6 {[%emt 0:00:01]} Ke4 {[%emt 0:00:04]} 64. Kc7 {[%emt 0:00:01]} Kd4 {[%emt 0:00:02]} 65. Kb8 {[%emt 0:00:02] Weighted Error Value: White=0.25 (precise) /Black=0.58} 1-0

[Event "Czech Open-Rapid 2022"]
[Site "Pardubice"]
[Date "2022.07.21"]
[Round "5.3"]
[White "Cerveny, Martin"]
[Black "Harsha Bharathakoti"]
[Result "0-1"]
[ECO "A46"]
[WhiteElo "2396"]
[BlackElo "2547"]
[Annotator "TA"]
[PlyCount "62"]
[EventDate "2022.07.20"]
[EventType "swiss"]
[EventCountry "CZE"]
[SourceTitle "playchess.com"]
[Source "ChessBase"]
[SourceQuality "1"]
[TimeControl "1200+10"]

{[%evp 9,62,-1,-6,-8,-4,0,0,-4,7,-19,-10,-30,-24,-31,-39,-71,-64,-75,-45,-95,-75,-127,-116,-156,-150,-154,-117,-193,-190,-280,-280,-262,-265,-575,-549,-539,-307,-755,-759,-724,-709,-953,-989,-984,-976,-983,-980,-972,-963,-903,-944,-933,-899,-2411,-924]} 1. d4 {[%emt 0:00:02]} Nf6 {[%emt 0:00:04]} 2. Nf3 {[%emt 0:00:03]} c5 {[%emt 0:00:19]} 3. c3 {[%emt 0:00:18]} e6 {[%emt 0:00:01]} 4. a3 {[%emt 0:00:21]} b6 {[%emt 0:00:31]} 5. Bg5 {[%emt 0:00:12]} Bb7 {[%emt 0:00:09]} 6. Nbd2 {[%emt 0:00:12][%cal Oe2e4] A46: 1 d4 Nf6 2 Nf3 e6: Torre, London and Colle Systems.} Be7 {[%emt 0:00:22]} 7. e3 {[%emt 0:00:08]} O-O {[%emt 0:01:45]} 8. Bd3 {[%emt 0:00:18] The position is equal.} d5 {[%emt 0:00:11] [#]} 9. Qc2 $146 {[%emt 0:00:45]} ({Predecessor:} 9. Qb1 h6 10. Bf4 Nbd7 11. h3 Qc8 12. g4 Ne4 13. Nxe4 dxe4 14. Bxe4 Nf6 15. Bxb7 Qxb7 {½-½ (27) Nascimento,D (2120)-Lebredo Zaragoitia,G (2203) Brasilia 2012}) 9... Nbd7 {[%emt 0:00:17][%cal Bb8d7,Bd7f6,Bf6e4,Be4d6,Bd6b5][%mdl 32]} 10. h4 {[%emt 0:01:17]} c4 {[%emt 0:00:16]} 11. Be2 {[%emt 0:00:05]} b5 {[%emt 0:00:35]} 12. Bxf6 {[%emt 0:01:26]} Nxf6 {[%emt 0:00:25]} 13. h5 {[%emt 0:00:17]} Ne4 {[%emt 0:02:54]} 14. Nf1 {[%emt 0:02:24]} ({Better is} 14. Nxe4 $15 dxe4 15. h6) 14... a5 $17 {[%emt 0:00:13]} 15. Ng1 {[%emt 0:01:31]} (15. N1d2 $142) 15... b4 {[%emt 0:00:13]} 16. Rh3 {[%emt 0:02:17]} bxc3 {[%emt 0:00:41]} 17. bxc3 {[%emt 0:00:02]} Bc8 {[%emt 0:00:59][%cal Oe6e5] 0x0.001f23d58790dp-1022s more active pieces.} 18. f3 {[%emt 0:00:22] [#]} (18. Nd2 $17 {was worth a try.}) 18... Nd6 $1 $19 {[%emt 0:00:17]} 19. e4 {[%emt 0:01:40]} (19. h6 {keeps fighting.} g6 20. e4) 19... dxe4 {[%emt 0:01:04]} 20. fxe4 {[%emt 0:00:03]} e5 {[%emt 0:00:00]} 21. g4 $2 {[%emt 0:01:05]} (21. dxe5 {is tougher.} Bxh3 22. Nxh3) 21... exd4 {[%emt 0:00:13]} 22. cxd4 {[%emt 0:00:02]} Nb5 {[%emt 0:01:37]} 23. d5 $2 {[%emt 0:00:13]} (23. Qxc4 Qxd4 24. Qxd4 Nxd4 25. Ne3) 23... Bh4+ {[%emt 0:02:29] Black is clearly winning.} 24. Kd1 {[%emt 0:01:50]} Qf6 {[%emt 0:02:53]} 25. Rb1 {[%emt 0:01:34] [#]} Bxg4 $1 {[%emt 0:00:02][%mdl 512] ( -> ...Qxf1+)} 26. Rxh4 {[%emt 0:00:50]} Qxf1+ {[%emt 0:00:03]} 27. Kd2 {[%emt 0:00:01]} Qf4+ {[%emt 0:00:02]} 28. Kd1 {[%emt 0:00:31]} Bxe2+ {[%emt 0:00:02]} 29. Nxe2 {[%emt 0:00:06]} Qxh4 {[%emt 0:00:03]} 30. Rxb5 {[%emt 0:00:03]} Rae8 {[%emt 0:01:04]} 31. d6 {[%emt 0:00:34]} Rxe4 {[%emt 0:00:28] Weighted Error Value: White=0.90/Black=0.12 (very precise)} (31... Qh1+ $142 32. Kd2 Rxe4) 0-1

[Event "Czech Open-Rapid 2022"]
[Site "Pardubice"]
[Date "2022.07.21"]
[Round "5.4"]
[White "Babula, Vlastimil sr"]
[Black "Akesson, Ralf"]
[Result "0-1"]
[ECO "D85"]
[WhiteElo "2556"]
[BlackElo "2427"]
[Annotator "TA"]
[PlyCount "114"]
[EventDate "2022.07.20"]
[EventType "swiss"]
[EventCountry "CZE"]
[SourceTitle "playchess.com"]
[Source "ChessBase"]
[SourceQuality "1"]
[TimeControl "1200+10"]

{[%evp 13,114,20,22,24,31,0,41,44,27,30,41,9,22,8,10,-18,-11,-22,-9,-28,0,-13,0,-27,-16,-38,-11,-14,0,-69,-2,0,10,0,0,0,11,0,27,18,21,0,7,-15,0,0,0,0,10,0,0,0,18,0,2,0,0,0,0,-45,-37,-46,-31,-31,-30,-30,-6,-29,-29,-40,-27,-129,-132,-138,-133,-188,-124,-215,-209,-203,-193,-241,-246,-412,-229,-220,-208,-197,-184,-439,-424,-405,-263,-252,-241,-218,-188,-694,-287,-29985,-29986,-29996,-29997]} 1. d4 {[%emt 0:00:04]} Nf6 {[%emt 0:00:02]} 2. c4 {[%emt 0:00:03]} g6 {[%emt 0:00:02]} 3. Nc3 {[%emt 0:00:04]} d5 {[%emt 0:00:02]} 4. cxd5 {[%emt 0:00:16]} Nxd5 {[%emt 0:00:02]} 5. Bd2 {[%emt 0:00:04]} Bg7 {[%emt 0:00:21]} 6. e4 {[%emt 0:00:03]} Nb6 {[%emt 0:02:45]} 7. Be3 {[%emt 0:00:05]} O-O {[%emt 0:00:02]} 8. Bb5 {[%emt 0:00:26] is the new trend. D85: Exchange Grünfeld: Unusual White 7th moves and lines with 7 Nf3.} Be6 {[%emt 0:02:28]} 9. Nge2 {[%emt 0:01:38]} Bc4 {[%emt 0:01:29]} 10. O-O {[%emt 0:00:55] [#] White is slightly better.} Bxb5 $146 {[%emt 0:01:22]} ({Predecessor:} 10... c6 11. Bxc4 Nxc4 12. Bg5 h6 13. Bh4 g5 14. Bg3 Nxb2 15. Qb3 Qb6 16. Qc2 Nc4 {1-0 (47) Ernst,S (2478)-Ondersteijn,N (2289) Hilversum 2006}) 11. Nxb5 {[%emt 0:00:03]} N8d7 {[%emt 0:00:14]} 12. f4 {[%emt 0:03:03]} c6 {[%emt 0:01:49]} 13. Na3 {[%emt 0:03:21]} e6 {[%emt 0:00:15]} 14. Ng3 {[%emt 0:00:30]} Qe7 {[%emt 0:00:50]} (14... f5 {feels hotter.} 15. Qb3 Nf6 16. Nc2 Ng4) 15. Rc1 {[%emt 0:01:57] Inhibits c5.} f5 {[%emt 0:00:34]} 16. Qb3 {[%emt 0:00:31]} Kh8 {[%emt 0:00:11]} 17. e5 {[%emt 0:00:04]} Nd5 {[%emt 0:00:27]} 18. Nc4 {[%emt 0:00:16]} N7b6 {[%emt 0:00:15]} 19. Nd6 {[%emt 0:01:09]} Nc8 {[%emt 0:00:36]} 20. Nc4 {[%emt 0:01:15]} Ncb6 {[%emt 0:00:12]} 21. Na5 {[%emt 0:00:07]} (21. Nd6 $11) 21... Rab8 {[%emt 0:00:33]} ({Black should play} 21... g5 $1 $15 22. Nh5 Bh6) 22. Ne2 $11 {[%emt 0:00:05]} Qb4 {[%emt 0:00:38]} 23. Qxb4 {[%emt 0:00:10]} Nxb4 {[%emt 0:00:02]} 24. Bd2 {[%emt 0:01:20]} N4d5 {[%emt 0:00:07]} (24... Nxa2 $2 25. Ra1 $18) 25. Nb3 {[%emt 0:00:34]} Rfe8 {[%emt 0:01:09]} 26. Nc5 {[%emt 0:00:02]} Bf8 {[%emt 0:00:05]} 27. Nd3 {[%emt 0:00:06]} Red8 {[%emt 0:00:34]} 28. b3 {[%emt 0:00:21]} Kg8 {[%emt 0:00:27]} 29. a4 {[%emt 0:00:03]} Na8 {[%emt 0:01:00]} 30. Kf2 {[%emt 0:00:30]} Rd7 {[%emt 0:00:08]} 31. Ng1 {[%emt 0:00:10]} Nac7 {[%emt 0:00:15]} 32. Nf3 {[%emt 0:00:01]} Be7 {[%emt 0:00:12]} 33. h3 {[%emt 0:00:07]} Kf7 {[%emt 0:00:29]} 34. g4 {[%emt 0:00:06]} Rdd8 {[%emt 0:01:06]} 35. Ke2 {[%emt 0:00:03]} h6 {[%emt 0:00:15]} 36. Nb2 {[%emt 0:00:56]} Ba3 {[%emt 0:00:17]} 37. Rc2 {[%emt 0:00:02]} Bxb2 {[%emt 0:00:11]} 38. Rxb2 {[%emt 0:00:01]} Rd7 {[%emt 0:00:23]} 39. Rc2 {[%emt 0:00:44]} Rg8 {[%emt 0:00:05]} 40. Ne1 {[%emt 0:00:45]} Ne7 {[%emt 0:00:21]} 41. Be3 {[%emt 0:00:53]} Ncd5 {[%emt 0:00:03]} 42. Bg1 {[%emt 0:00:07] Black continues to play with concentration.} (42. Bd2 $11) 42... fxg4 $17 {[%emt 0:00:40]} 43. hxg4 {[%emt 0:00:02]} h5 {[%emt 0:00:01]} 44. Nf3 {[%emt 0:02:15]} (44. g5 $17) 44... Nxf4+ {[%emt 0:00:08]} ({Better is} 44... hxg4 $19 45. Ng5+ Ke8 46. Nxe6 Nf5) 45. Ke3 {[%emt 0:00:01]} (45. Kd2 $17 Ned5 46. Ng5+ Ke7 47. Ne4) 45... Ned5+ $19 {[%emt 0:00:33]} 46. Ke4 {[%emt 0:00:01]} g5 {[%emt 0:00:57][%cal Bg6g5,Bg5g4][%mdl 32]} 47. gxh5 {[%emt 0:00:16]} (47. Be3 {was necessary.}) 47... Ke8 {[%emt 0:00:08] Threatens to win with ...g4.} 48. Rh2 $2 {[%emt 0:01:50]} (48. h6 {is a better defense.} Rh7 49. Rh2) 48... Rh7 {[%emt 0:00:38]} (48... g4 $142 49. Nd2 g3) 49. h6 {[%emt 0:00:02]} g4 {[%emt 0:00:14]} 50. Nd2 {[%emt 0:00:11] [#]} Rf8 {[%emt 0:01:08] And now ...g3 would win. Chess con chili.} ({And not} 50... g3 51. Rh4 Ne2 52. Re1 Nec3+ 53. Kd3 $17) 51. Rhf2 $2 {[%emt 0:00:28]} (51. Bf2 {was worth a try.}) 51... Nc3+ {[%emt 0:00:29] Pair of Knights!} 52. Ke3 {[%emt 0:00:01]} Nfd5+ {[%emt 0:00:02]} 53. Kd3 {[%emt 0:00:02]} Rxf2 {[%emt 0:00:04]} 54. Rxf2 {[%emt 0:00:10]} Rxh6 {[%emt 0:00:02] White must now prevent ...Rh3+.} 55. Kc4 $2 {[%emt 0:00:13]} (55. Rh2 Rxh2 56. Bxh2) 55... b6 {[%emt 0:00:30]} (55... Rh1 $142 56. Rf1 g3) 56. Rg2 {[%emt 0:00:01] [#]} (56. Rh2 $19 Rh3 57. Rxh3 gxh3 58. Bh2) 56... Rh3 {[%emt 0:00:27]} 57. Rxg4 {[%emt 0:00:44]} Nd1 {[%emt 0:00:05] Weighted Error Value: White=0.55/Black=0.23 (precise)} 0-1

[Event "Czech Open-Rapid 2022"]
[Site "Pardubice"]
[Date "2022.07.21"]
[Round "5.5"]
[White "Rasik, Vitezslav"]
[Black "Plat, Vojtech"]
[Result "1/2-1/2"]
[ECO "B07"]
[WhiteElo "2419"]
[BlackElo "2554"]
[Annotator "TA"]
[PlyCount "35"]
[EventDate "2022.07.20"]
[EventType "swiss"]
[EventCountry "CZE"]
[SourceTitle "playchess.com"]
[Source "ChessBase"]
[SourceQuality "1"]
[TimeControl "1200+10"]

{[%evp 9,35,-2,5,-2,43,39,37,47,37,21,14,15,83,20,26,19,20,30,39,39,54,68,66,43,75,63,64,0]} 1. e4 {[%emt 0:00:03]} d6 {[%emt 0:00:03]} 2. d4 {[%emt 0:00:04]} Nf6 {[%emt 0:00:03]} 3. Nc3 {[%emt 0:00:06]} e5 {[%emt 0:00:01]} 4. f3 {[%emt 0:00:18]} exd4 {[%emt 0:00:04]} (4... Nbd7 5. Be3 c6 6. Qd2 Be7 7. g4 Qa5 8. O-O-O b5 9. Kb1 Nb6 10. b3 b4 11. Nce2 c5 12. dxe5 dxe5 13. Ng3 O-O 14. g5 Ne8 15. h4 Nd6 16. h5 {0-1 (68) Rasik,V (2446)-Plat,V (2458) Olomouc 2015}) 5. Qxd4 {[%emt 0:00:03]} Nc6 {[%emt 0:00:02]} 6. Bb5 {[%emt 0:00:10] B07: Pirc Defence: Miscellaneous Systems.} Bd7 {[%emt 0:00:19]} (6... Be7 $5 {[%cal Re8g8]}) 7. Bxc6 {[%emt 0:00:10]} bxc6 {[%emt 0:00:12]} 8. Nge2 {[%emt 0:00:14]} Be7 {[%emt 0:00:04]} 9. O-O {[%emt 0:01:14]} O-O {[%emt 0:00:02] [#]} 10. b3 $146 {[%emt 0:00:26]} ({Predecessor:} 10. Ng3 Re8 11. Bd2 Qb8 12. Qd3 d5 13. b3 Qb6+ 14. Kh1 dxe4 15. Ngxe4 Rad8 16. Be3 {½-½ (26) Kubicki,M (2143)-Lubczynski,R (2361) Krakow 2005}) 10... d5 {[%emt 0:01:21] [#]} (10... a5 $11) 11. exd5 {[%emt 0:03:11]} ({Better is} 11. e5 $1 $16 {[%cal Re5f6]}) 11... cxd5 $11 {[%emt 0:00:20]} 12. Nxd5 {[%emt 0:00:27]} Nxd5 {[%emt 0:00:30]} 13. Qxd5 {[%emt 0:00:03]} Bf6 {[%emt 0:00:02] Against Bb2} 14. Rb1 {[%emt 0:00:18]} Re8 {[%emt 0:00:02]} 15. Ng3 {[%emt 0:00:26]} c6 {[%emt 0:00:13]} 16. Qc5 {[%emt 0:00:52]} Be7 {[%emt 0:03:50]} 17. Qc3 {[%emt 0:01:31] White is more active.} Bf6 {[%emt 0:01:54]} 18. Qc5 {[%emt 0:00:01] Weighted Error Value: White=0.15 (very precise) /Black=0.21 (precise)} (18. Qd3 $14) 1/2-1/2